bitfinex-derivatives/quotes_BTCF0:USTF0_20230701
["timestamp","ask_amount","ask_price","bid_price","bid_amount"]
[1688201525220,0.82246359,30474.0,30473.0,0.40473805]
[1688201525516,0.82246359,30474.0,30473.0,0.71393805]
[1688201528017,0.84930861,30474.0,30473.0,0.71393805]
[1688201528725,0.781403,30474.0,30473.0,0.71393805]
[1688201530619,0.84930774,30474.0,30473.0,0.71393805]
[1688201531220,0.781403,30474.0,30473.0,0.71393805]
[1688201531722,0.67231239,30474.0,30473.0,0.71393805]
[1688201534323,0.67231239,30474.0,30473.0,0.73216774]
[1688201535030,0.67231239,30474.0,30473.0,0.71393805]
[1688201535923,0.67231239,30474.0,30473.0,0.73216774]
[1688201536933,0.67231239,30474.0,30473.0,0.71393805]
[1688201537726,0.67231239,30474.0,30473.0,0.73216774]
[1688201538825,0.67231239,30474.0,30473.0,0.71393805]
[1688201539334,0.58743092,30474.0,30473.0,0.71393805]
[1688201540924,0.5605859,30474.0,30473.0,0.71393805]
[1688201541432,0.5605859,30474.0,30473.0,0.73216774]
[1688201545129,0.85516112,30474.0,30473.0,0.73216774]
[1688201546737,0.64546617,30474.0,30473.0,0.71393805]
[1688201546925,0.64546617,30474.0,30473.0,0.73216774]
[1688201548427,0.64546617,30474.0,30473.0,0.71393805]
[1688201548830,0.64546617,30474.0,30473.0,0.73216774]
[1688201549528,0.64546617,30474.0,30473.0,0.71393805]
[1688201554321,0.88837217,30474.0,30473.0,0.71393805]
[1688201555129,0.97325512,30474.0,30473.0,0.71393805]
[1688201556632,0.97325512,30474.0,30473.0,0.73216774]
[1688201557333,0.97325512,30474.0,30473.0,0.71393805]
[1688201557932,1.33405512,30474.0,30473.0,0.71393805]
[1688201561738,1.24917217,30474.0,30473.0,0.71393805]
[1688201561936,0.9213859,30474.0,30473.0,0.71393805]
[1688201564440,0.9213859,30474.0,30473.0,0.73216774]
[1688201564942,0.9213859,30474.0,30473.0,0.71393805]
[1688201565540,0.9213859,30474.0,30473.0,0.73216774]
[1688201565740,0.9213859,30474.0,30473.0,0.71393805]
[1688201566341,0.9213859,30474.0,30473.0,0.73216774]
[1688201566531,0.9213859,30474.0,30473.0,0.71393805]
[1688201568042,0.9213859,30474.0,30473.0,0.73216774]
[1688201569144,0.9213859,30474.0,30473.0,0.71393805]
[1688201569451,1.00626739,30474.0,30473.0,0.71393805]
[1688201570435,1.00626739,30474.0,30473.0,0.73216774]
[1688201572948,1.00626739,30474.0,30473.0,0.71393805]
[1688201573541,0.64546739,30474.0,30473.0,0.71393805]
[1688201573950,0.64546739,30474.0,30473.0,0.73216774]
[1688201575146,0.38667781,30475.0,30473.0,1.08676774]
[1688201575450,0.38667781,30475.0,30474.0,0.41137414]
[1688201575844,0.87875609,30475.0,30474.0,0.42296012]
[1688201576235,0.32793131,30475.0,30474.0,0.76393043]
[1688201576440,0.3608,30479.0,30474.0,0.75733043]
[1688201576644,0.49120401,30475.0,30474.0,0.03128098]
[1688201576945,0.2623472,30476.0,30474.0,0.83195563]
[1688201577148,1.11547193,30478.0,30475.0,0.7074]
[1688201577149,0.78517193,30478.0,30475.0,0.7074]
[1688201577451,0.2951406,30478.0,30477.0,0.3516]
[1688201577750,0.2951406,30478.0,30477.0,0.38053753]
[1688201577751,0.43543797,30478.0,30477.0,0.38053753]
[1688201578048,0.43543797,30478.0,30477.0,0.41761667]
[1688201579548,0.14029737,30478.0,30477.0,0.41761667]
[1688201579942,0.43543797,30478.0,30477.0,0.39876722]
[1688201580146,0.52303029,30478.0,30477.0,0.39876722]
[1688201580354,0.52303029,30478.0,30477.0,0.38053753]
[1688201580652,0.22788969,30478.0,30477.0,0.38053753]
[1688201580854,0.58868969,30478.0,30477.0,0.38053753]
[1688201581043,0.67357065,30478.0,30477.0,0.38053753]
[1688201581235,0.67357065,30478.0,30477.0,0.36357916]
[1688201586352,0.67357065,30478.0,30477.0,0.019693]
[1688201589754,1.02817065,30478.0,30477.0,0.019693]
[1688201595853,1.02817065,30478.0,30477.0,0.01947202]
[1688201597748,1.38897065,30478.0,30477.0,0.01947202]
[1688201599444,1.38897065,30478.0,30475.0,0.401836]
[1688201599646,0.67927408,30476.0,30475.0,0.401836]
[1688201599856,0.52407428,30476.0,30475.0,0.401836]
[1688201600155,0.92732735,30476.0,30475.0,0.401836]
[1688201601462,0.92732735,30476.0,30475.0,0.049236]
[1688201607849,0.92718094,30476.0,30475.0,0.049236]
[1688201616669,1.64878094,30476.0,30475.0,0.049236]
[1688201616855,1.84663612,30476.0,30475.0,0.049236]
[1688201618867,1.12503612,30476.0,30475.0,0.049236]
[1688201619067,1.84663612,30476.0,30475.0,0.049236]
[1688201625460,1.94850043,30476.0,30475.0,0.049236]
[1688201625861,1.94850043,30476.0,30475.0,0.04905331]
[1688201629373,1.84663612,30476.0,30475.0,0.04905331]
[1688201637486,1.94850113,30476.0,30475.0,0.04905331]
[1688201637873,1.94833984,30476.0,30475.0,0.04905331]
[1688201640186,2.34202962,30476.0,30475.0,0.04905331]
[1688201644288,2.24016461,30476.0,30475.0,0.04905331]
[1688201644481,1.84647483,30476.0,30475.0,0.04905331]
[1688201651491,1.84647483,30476.0,30475.0,0.04896147]
[1688201652587,1.94833822,30476.0,30475.0,0.04896147]
[1688201655191,1.22673822,30476.0,30475.0,0.04896147]
[1688201655397,1.84647483,30476.0,30475.0,0.04896147]
[1688201655590,1.84647483,30476.0,30475.0,0.05824154]
[1688201655895,1.94833822,30476.0,30475.0,0.04896147]
[1688201657300,1.92864422,30476.0,30475.0,0.04896147]
[1688201657489,1.82678083,30476.0,30475.0,0.04896147]
[1688201660593,1.84647483,30476.0,30475.0,0.04896147]
[1688201665788,1.82678083,30476.0,30475.0,0.04896147]
[1688201667999,1.82678083,30476.0,30475.0,0.05820206]
[1688201671505,1.82678083,30476.0,30475.0,0.07705151]
[1688201671715,1.47548853,30476.0,30475.0,0.43165151]
[1688201671889,1.27763335,30476.0,30475.0,0.43165151]
[1688201672894,1.27763335,30476.0,30475.0,0.41280206]
[1688201673702,1.27763335,30476.0,30475.0,0.43103175]
[1688201673891,0.91683335,30476.0,30475.0,0.43103175]
[1688201674086,0.91683335,30476.0,30475.0,0.41280206]
[1688201678903,0.55603335,30476.0,30475.0,0.41280206]
[1688201679105,0.91683335,30476.0,30475.0,0.41280206]
[1688201680105,0.55603335,30476.0,30475.0,0.41280206]
[1688201680309,0.91683335,30476.0,30475.0,0.41280206]
[1688201684801,0.55603335,30476.0,30475.0,0.41280206]
[1688201685001,0.91683335,30476.0,30475.0,0.41280206]
[1688201688497,0.55603335,30476.0,30475.0,0.41280206]
[1688201688702,0.91683335,30476.0,30475.0,0.41280206]
[1688201690615,0.93652735,30476.0,30475.0,0.41280206]
[1688201692016,1.13438253,30476.0,30475.0,0.41280206]
[1688201693722,1.11468853,30476.0,30475.0,0.41280206]
[1688201694311,1.11468853,30476.0,30475.0,0.43165151]
[1688201697919,1.11468853,30476.0,30475.0,0.41280206]
[1688201700216,1.11468853,30476.0,30475.0,0.43165151]
[1688201700924,1.11468853,30476.0,30475.0,0.41280206]
[1688201703325,1.11468853,30476.0,30475.0,0.43103175]
[1688201703927,0.91683335,30476.0,30475.0,0.4564812]
[1688201704122,0.91683335,30476.0,30475.0,0.43825151]
[1688201704313,1.15986797,30476.0,30475.0,0.43825151]
[1688201704519,1.15986797,30476.0,30475.0,0.4564812]
[1688201704916,1.15986797,30476.0,30475.0,0.41280206]
[1688201706222,1.15986797,30476.0,30475.0,0.43165151]
[1688201706425,1.15986797,30476.0,30475.0,0.4564812]
[1688201706722,0.83195239,30476.0,30475.0,0.4564812]
[1688201707528,1.12706206,30476.0,30475.0,0.4564812]
[1688201707719,0.59898132,30476.0,30475.0,0.4564812]
[1688201707917,0.46225602,30476.0,30475.0,0.4564812]
[1688201708222,0.26233559,30477.0,30475.0,0.81415891]
[1688201708417,0.26233559,30478.0,30476.0,0.41137114]
[1688201708623,0.26233559,30478.0,30477.0,0.3546]
[1688201708832,0.26233559,30479.0,30477.0,0.3789827]
[1688201709016,0.00049202,30480.0,30479.0,0.7092]
[1688201709214,0.00049202,30480.0,30479.0,0.73358159]
[1688201709427,0.42777667,30480.0,30479.0,0.77066073]
[1688201711921,0.84055491,30480.0,30479.0,0.77066073]
[1688201712128,0.84055491,30480.0,30479.0,0.75243104]
[1688201713021,0.8235824,30480.0,30479.0,0.75243104]
[1688201713228,0.8235824,30480.0,30479.0,0.77066073]
[1688201713427,0.8235824,30480.0,30479.0,0.75243104]
[1688201713624,0.90844451,30480.0,30479.0,0.77066073]
[1688201713832,0.8235824,30480.0,30479.0,0.77066073]
[1688201714533,0.49566682,30480.0,30479.0,0.77066073]
[1688201714727,0.68115901,30480.0,30479.0,0.77066073]
[1688201715621,0.38652415,30480.0,30479.0,0.77066073]
[1688201716228,0.27372415,30480.0,30479.0,0.77066073]
[1688201716631,0.06932415,30480.0,30479.0,0.77066073]
[1688201716825,0.29463486,30482.0,30479.0,0.76786073]
[1688201717036,0.29463486,30482.0,30481.0,0.7154]
[1688201717333,0.29463486,30482.0,30481.0,0.73907923]
[1688201717539,0.7857884,30482.0,30481.0,0.77615837]
[1688201719419,0.49115354,30482.0,30481.0,0.77615837]
[1688201719820,0.02646409,30485.0,30481.0,0.77615837]
[1688201719821,0.06406654,30484.0,30481.0,0.77615837]
[1688201720024,0.3608,30486.0,30483.0,0.374288]
[1688201720222,0.3608,30486.0,30485.0,0.374287]
[1688201720632,0.52037907,30486.0,30485.0,0.39712601]
[1688201722238,0.52037907,30486.0,30485.0,0.37827656]
[1688201726539,0.52037907,30486.0,30485.0,0.37815656]
[1688201727040,0.9161791,30486.0,30485.0,0.37815656]
[1688201733942,0.9161791,30486.0,30485.0,0.37827656]
[1688201734446,0.94906352,30486.0,30485.0,0.37827656]
[1688201735048,1.32334952,30486.0,30484.0,0.403819]
[1688201735343,0.374088,30485.0,30484.0,0.403819]
[1688201735548,0.44197698,30485.0,30484.0,0.403819]
[1688201735735,0.83167212,30485.0,30484.0,0.403819]
[1688201736132,0.83167212,30485.0,30484.0,0.4068038]
[1688201736736,0.83187212,30485.0,30484.0,0.4068038]
[1688201740040,0.81218412,30485.0,30484.0,0.4068038]
[1688201741845,1.27753356,30485.0,30484.0,0.0522038]
[1688201742036,0.92293356,30485.0,30484.0,0.049219]
[1688201742232,1.27453356,30485.0,30484.0,0.048119]
[1688201742443,1.27453356,30485.0,30483.0,0.01640859]
[1688201742633,0.3546,30484.0,30482.0,0.402022]
[1688201742837,0.86815142,30483.0,30482.0,0.402022]
[1688201743143,0.88802399,30483.0,30482.0,0.402022]
[1688201744833,0.88802399,30483.0,30482.0,0.049222]
[1688201745042,0.88802399,30483.0,30481.0,0.41115904]
[1688201745244,0.50715142,30482.0,30481.0,0.41115904]
[1688201745441,0.52684042,30482.0,30481.0,0.41115904]
[1688201745639,1.01601099,30482.0,30481.0,0.35209204]
[1688201746640,1.01601099,30482.0,30481.0,0.37178204]
[1688201747049,1.01601099,30482.0,30481.0,0.37466737]
[1688201749249,1.01601099,30482.0,30481.0,0.37178204]
[1688201749434,0.93114855,30482.0,30481.0,0.37178204]
[1688201749637,1.14285211,30482.0,30481.0,0.37178204]
[1688201751440,1.47026944,30482.0,30481.0,0.37466671]
[1688201752448,1.55513963,30482.0,30481.0,0.37466671]
[1688201752843,1.55513963,30482.0,30481.0,0.37178204]
[1688201753352,1.2277223,30482.0,30481.0,0.37178204]
[1688201753648,1.01601874,30482.0,30481.0,0.37178204]
[1688201754848,1.01601874,30482.0,30481.0,0.02018204]
[1688201755055,1.01601874,30482.0,30481.0,0.01995759]
[1688201755642,1.04189782,30482.0,30481.0,0.01995759]
[1688201756342,1.04189782,30482.0,30481.0,0.00026759]
[1688201758843,1.04189782,30482.0,30477.0,0.019692]
[1688201759039,1.04189782,30482.0,30476.0,0.05908]
[1688201759040,1.0762,30478.0,30476.0,0.05908]
[1688201759244,0.77338098,30477.0,30476.0,0.05908]
[1688201763545,0.75368898,30477.0,30476.0,0.05908]
[1688201763744,0.77338198,30477.0,30476.0,0.05908]
[1688201764450,0.85826009,30477.0,30476.0,0.05908]
[1688201764947,1.58006009,30477.0,30476.0,0.41368]
[1688201765145,1.58006009,30477.0,30475.0,0.049237]
[1688201765351,1.58006009,30477.0,30475.0,0.0402767]
[1688201765352,0.52706109,30476.0,30475.0,0.0402767]
[1688201765654,1.02180486,30476.0,30475.0,0.0402767]
[1688201767651,1.02180486,30476.0,30475.0,0.019693]
[1688201768453,1.02180486,30476.0,30475.0,0.01694758]
[1688201769853,1.08889417,30476.0,30475.0,0.01694758]
[1688201770254,1.13889417,30476.0,30475.0,0.01694758]
[1688201770963,1.13889417,30476.0,30475.0,0.0120696]
[1688201772054,1.05401606,30476.0,30475.0,0.0120696]
[1688201772852,1.05401606,30476.0,30474.0,0.065648]
[1688201773057,0.63152708,30476.0,30475.0,0.019693]
[1688201773255,1.05403597,30476.0,30475.0,0.019694]
[1688201773861,1.77563597,30476.0,30475.0,0.019694]
[1688201774559,3.03786262,30476.0,30473.0,0.00049218]
[1688201774758,0.374294,30474.0,30473.0,0.00049218]
[1688201774956,0.44220289,30474.0,30473.0,0.00049218]
[1688201775160,0.93442161,30474.0,30473.0,0.00049218]
[1688201779571,0.93442161,30474.0,30473.0,0.02018518]
[1688201779963,0.93442161,30474.0,30473.0,0.00049218]
[1688201784476,1.65602161,30474.0,30473.0,0.00049218]
[1688201784867,1.65602161,30474.0,30472.0,0.019694]
[1688201785064,0.3541,30471.0,30467.0,0.324397]
[1688201785265,1.0732,30468.0,30467.0,0.26829158]
[1688201785467,1.092897,30468.0,30467.0,0.019697]
[1688201785774,1.60109274,30468.0,30467.0,0.019697]
[1688201785972,1.92059274,30468.0,30467.0,0.019697]
[1688201788373,1.60109274,30468.0,30467.0,0.019697]
[1688201790879,1.66667538,30468.0,30467.0,0.019697]
[1688201792387,1.66667538,30468.0,30465.0,0.3616]
[1688201792686,0.3546,30466.0,30465.0,0.3616]
[1688201793184,0.36699327,30466.0,30465.0,0.3616]
[1688201793981,0.38669227,30466.0,30465.0,0.3616]
[1688201795897,0.68769227,30466.0,30465.0,0.3616]
[1688201799881,0.68769227,30466.0,30462.0,0.325699]
[1688201800086,0.68769227,30466.0,30462.0,0.30858839]
[1688201800087,1.0959,30463.0,30462.0,0.30858839]
[1688201800278,1.0959,30463.0,30462.0,0.2054996]
[1688201800279,1.10558747,30463.0,30462.0,0.2054996]
[1688201800481,1.10558747,30463.0,30460.0,0.3289]
[1688201800482,1.10558747,30463.0,30460.0,0.348601]
[1688201800690,0.374301,30461.0,30460.0,0.019701]
[1688201801191,0.38398839,30461.0,30460.0,0.019701]
[1688201801880,1.22913857,30461.0,30460.0,0.019701]
[1688201802591,1.05,30456.0,30452.0,0.019707]
[1688201802893,0.3608,30456.0,30455.0,0.3546]
[1688201803084,0.3608,30456.0,30455.0,0.374305]
[1688201803281,0.3644297,30456.0,30455.0,0.372505]
[1688201803885,0.85654657,30456.0,30455.0,0.372505]
[1688201804292,0.85654657,30456.0,30455.0,0.374305]
[1688201807097,0.85654657,30456.0,30455.0,0.39315445]
[1688201807691,0.85654657,30456.0,30455.0,0.37391945]
[1688201807896,0.49574657,30456.0,30455.0,0.37391945]
[1688201809800,0.38695555,30456.0,30455.0,0.38051945]
[1688201810300,0.39401129,30456.0,30455.0,0.39874914]
[1688201810795,0.7819,30465.0,30457.0,0.019704]
[1688201810985,0.059096,30466.0,30465.0,0.019699]
[1688201811193,0.059096,30466.0,30465.0,0.374299]
[1688201811394,0.059096,30466.0,30465.0,0.39252869]
[1688201811595,0.54868768,30466.0,30465.0,0.39252869]
[1688201811794,0.57521917,30466.0,30465.0,0.39314845]
[1688201812885,0.51612317,30466.0,30465.0,0.39314845]
[1688201813395,0.51612317,30466.0,30465.0,0.41137814]
[1688201813594,0.51612317,30466.0,30465.0,0.39314845]
[1688201813902,0.51612317,30466.0,30465.0,0.41137814]
[1688201814802,0.51612317,30466.0,30465.0,0.39314845]
[1688201816401,0.51612317,30466.0,30465.0,0.374299]
[1688201816599,0.87052317,30466.0,30465.0,0.019699]
[1688201816809,0.89022117,30466.0,30465.0,0.019699]
[1688201817302,0.95814198,30466.0,30465.0,0.019699]
[1688201817801,0.96491737,30466.0,30465.0,0.019699]
[1688201818289,0.96491737,30466.0,30465.0,0.03792869]
[1688201818697,0.96491737,30466.0,30465.0,0.03854845]
[1688201820507,0.96491737,30466.0,30465.0,0.019699]
[1688201823813,1.27041737,30466.0,30465.0,0.019699]
[1688201824203,0.91601737,30466.0,30465.0,0.019699]
[1688201824400,1.27061737,30466.0,30465.0,0.019699]
[1688201824594,1.20269656,30466.0,30465.0,0.019699]
[1688201825902,1.18299856,30466.0,30465.0,0.019699]
[1688201827806,1.54379856,30466.0,30465.0,0.019699]
[1688201829712,0.88369856,30466.0,30465.0,0.39314845]
[1688201829908,0.88369856,30466.0,30465.0,0.41125814]
[1688201830512,0.52289856,30466.0,30465.0,0.41125814]
[1688201830907,0.52289856,30466.0,30465.0,0.39302845]
[1688201831916,0.52289856,30466.0,30465.0,0.41125814]
[1688201833219,0.52289856,30466.0,30465.0,0.39302845]
[1688201833716,0.49636707,30466.0,30465.0,0.41125814]
[1688201834824,0.49636707,30466.0,30465.0,0.43125814]
[1688201835018,0.49636707,30466.0,30465.0,0.45025814]
[1688201835224,0.49636707,30466.0,30465.0,0.43125814]
[1688201835533,0.50133925,30466.0,30465.0,0.41125814]
[1688201835825,0.50133925,30466.0,30465.0,0.43025814]
[1688201836017,0.50133925,30466.0,30465.0,0.45025814]
[1688201839928,0.01174757,30466.0,30465.0,0.45025814]
[1688201840316,0.00049235,30469.0,30466.0,0.05]
[1688201840522,0.00049235,30469.0,30468.0,0.7154]
[1688201840721,0.00049235,30469.0,30468.0,0.77217514]
[1688201840919,0.49328902,30469.0,30468.0,0.77217514]
[1688201841120,0.50566037,30469.0,30468.0,0.77217514]
[1688201841325,0.50566037,30469.0,30468.0,0.79217514]
[1688201841923,0.50566037,30469.0,30468.0,0.81117514]
[1688201843935,0.50566037,30469.0,30468.0,0.81087514]
[1688201847235,0.50566037,30469.0,30468.0,0.413296]
[1688201848445,0.50566037,30469.0,30468.0,0.43214545]
[1688201849134,0.50566037,30469.0,30468.0,0.45037514]
[1688201855046,0.50566037,30469.0,30468.0,0.43214545]
[1688201855344,0.50566037,30469.0,30468.0,0.45037514]
[1688201856238,0.50566037,30469.0,30468.0,0.43214545]
[1688201856641,0.50566037,30469.0,30468.0,0.45037514]
[1688201857038,0.50566037,30469.0,30468.0,0.413296]
[1688201857734,0.50566037,30469.0,30468.0,0.45037514]
[1688201857941,0.50566037,30469.0,30468.0,0.43214545]
[1688201859444,0.50566037,30469.0,30468.0,0.45037514]
[1688201860443,0.50566037,30469.0,30468.0,0.43214545]
[1688201860644,0.50566037,30469.0,30468.0,0.413296]
[1688201862141,0.50566037,30469.0,30468.0,0.393296]
[1688201862338,0.50566037,30469.0,30468.0,0.374296]
[1688201864754,0.86026037,30469.0,30468.0,0.374296]
[1688201869853,0.92817045,30469.0,30468.0,0.374296]
[1688201870938,0.94786545,30469.0,30468.0,0.374296]
[1688201874741,0.94786545,30469.0,30468.0,0.019696]
[1688201875442,1.33467904,30469.0,30468.0,0.019696]
[1688201875637,1.33146611,30469.0,30468.0,0.019696]
[1688201877141,1.24657341,30469.0,30468.0,0.019696]
[1688201877347,1.60737341,30469.0,30468.0,0.019696]
[1688201877650,1.60737341,30469.0,30465.0,0.059091]
[1688201877843,0.7152,30466.0,30465.0,0.059091]
[1688201878039,0.734897,30466.0,30465.0,0.059091]
[1688201878239,0.74199482,30466.0,30465.0,0.059091]
[1688201878741,1.04599482,30466.0,30465.0,0.059091]
[1688201886959,1.04599482,30466.0,30465.0,0.032991]
[1688201888246,1.07162828,30466.0,30465.0,0.032991]
[1688201892250,1.13954776,30466.0,30465.0,0.032991]
[1688201899765,1.07162828,30466.0,30465.0,0.032991]
[1688201907153,1.13954978,30466.0,30465.0,0.032991]
[1688201908358,1.13954978,30466.0,30465.0,0.05909]
[1688201911259,1.46736147,30466.0,30465.0,0.05909]
[1688201912865,1.13954978,30466.0,30465.0,0.05909]
[1688201913361,1.46736147,30466.0,30465.0,0.05909]
[1688201914770,1.04503997,30466.0,30465.0,0.05909]
[1688201914967,0.71722828,30466.0,30465.0,0.05909]
[1688201917364,1.06882828,30466.0,30465.0,0.05909]
[1688201918667,0.70802828,30466.0,30465.0,0.05909]
[1688201918870,1.1367488,30466.0,30465.0,0.05909]
[1688201927866,0.7759488,30466.0,30465.0,0.05909]
[1688201929874,0.86084825,30466.0,30465.0,0.05909]
[1688201935678,1.22164825,30466.0,30465.0,0.05909]
[1688201937172,1.1367488,30466.0,30465.0,0.05909]
[1688201939373,1.43210008,30466.0,30465.0,0.05909]
[1688201944791,1.22164957,30466.0,30465.0,0.05909]
[1688201948301,0.53715257,30466.0,30465.0,0.07731969]
[1688201948499,0.78046758,30466.0,30465.0,0.05909]
[1688201949200,0.78046758,30466.0,30465.0,0.09616914]
[1688201949696,0.4522518,30466.0,30465.0,0.09616914]
[1688201950001,0.78046758,30466.0,30465.0,0.09616914]
[1688201950495,0.4522518,30466.0,30465.0,0.09616914]
[1688201952206,0.38433128,30466.0,30465.0,0.09616914]
[1688201953297,0.38433128,30466.0,30465.0,0.07731969]
[1688201953502,0.38433128,30466.0,30465.0,0.05909]
[1688201959697,0.45224913,30466.0,30465.0,0.05909]
[1688201964211,0.55684873,30466.0,30465.0,0.05909]
[1688201964910,0.88144873,30466.0,30465.0,0.05909]
[1688201965513,0.88144873,30466.0,30465.0,0.019699]
[1688201967311,0.79654713,30466.0,30465.0,0.019699]
[1688201973004,1.15734713,30466.0,30465.0,0.019699]
[1688201976121,1.45518473,30466.0,30465.0,0.019699]
[1688201977422,1.80658473,30466.0,30465.0,0.019699]
[1688201978216,1.45498473,30466.0,30465.0,0.019699]
[1688201978925,1.15714713,30466.0,30465.0,0.019699]
[1688201982227,1.24204932,30466.0,30465.0,0.019699]
[1688201985320,1.57002071,30466.0,30465.0,0.019699]
[1688201985630,1.86785831,30466.0,30465.0,0.019699]
[1688201986536,1.53988692,30466.0,30465.0,0.019699]
[1688201986725,1.24204932,30466.0,30465.0,0.019699]
[1688201989828,1.15714713,30466.0,30465.0,0.019699]
[1688201996536,1.13744913,30466.0,30465.0,0.019699]
[1688201997227,1.13744913,30466.0,30465.0,0.05677814]
[1688201997429,1.2257407,30466.0,30465.0,0.05677814]
[1688201997737,1.2257407,30466.0,30465.0,0.03854845]
[1688201998835,0.8649407,30466.0,30465.0,0.03854845]
[1688201999025,1.2257407,30466.0,30465.0,0.03854845]
[1688201999635,1.2454397,30466.0,30465.0,0.03854845]
[1688201999942,0.9174477,30466.0,30465.0,0.019699]
[1688202001841,0.9174477,30466.0,30465.0,0.04561321]
[1688202002038,0.9174477,30466.0,30465.0,0.019699]
[1688202004938,1.12782399,30466.0,30465.0,0.019699]
[1688202006127,1.13573828,30466.0,30465.0,0.019699]
[1688202019950,1.22064258,30466.0,30465.0,0.019699]
[1688202020245,0.92536672,30466.0,30465.0,0.019699]
[1688202027349,1.13579893,30466.0,30465.0,0.019699]
[1688202028460,1.43363653,30466.0,30465.0,0.019699]
[1688202029767,1.13579893,30466.0,30465.0,0.019699]
[1688202031668,0.77499893,30466.0,30465.0,0.019699]
[1688202032077,1.13579893,30466.0,30465.0,0.019699]
[1688202034965,0.92536689,30466.0,30465.0,0.019699]
[1688202036975,0.91591478,30466.0,30465.0,0.019699]
[1688202042284,1.1263741,30466.0,30465.0,0.019699]
[1688202043572,1.4242117,30466.0,30465.0,0.019699]
[1688202044377,1.12884791,30466.0,30465.0,0.019699]
[1688202044977,0.83101031,30466.0,30465.0,0.019699]
[1688202049983,0.91591525,30466.0,30465.0,0.019699]
[1688202053692,0.55511525,30466.0,30465.0,0.019699]
[1688202053882,0.91591525,30466.0,30465.0,0.019699]
[1688202057483,0.83101031,30466.0,30465.0,0.019699]
[1688202059387,1.15926688,30466.0,30465.0,0.019699]
[1688202062689,1.51386688,30466.0,30463.0,0.059099]
[1688202062990,1.38236008,30464.0,30463.0,0.059103]
[1688202063188,1.45027793,30464.0,30461.0,0.019701]
[1688202063490,0.019703,30460.0,30459.0,0.361612]
[1688202063703,1.20733587,30460.0,30459.0,0.059112]
[1688202063903,1.21289968,30460.0,30459.0,0.059112]
[1688202064409,1.52789968,30460.0,30459.0,0.059112]
[1688202064701,1.07507083,30460.0,30459.0,0.059112]
[1688202066489,1.02536981,30460.0,30459.0,0.059112]
[1688202072001,1.05183178,30460.0,30459.0,0.059112]
[1688202072194,1.08212878,30460.0,30459.0,0.059112]
[1688202072393,1.15006174,30460.0,30459.0,0.059112]
[1688202072592,1.44542082,30460.0,30459.0,0.059112]
[1688202074593,1.15006174,30460.0,30459.0,0.059112]
[1688202075599,1.44542082,30460.0,30459.0,0.059112]
[1688202076692,1.15006174,30460.0,30459.0,0.059112]
[1688202078791,0.78926174,30460.0,30459.0,0.059112]
[1688202078995,1.15006174,30460.0,30459.0,0.059112]
[1688202079601,1.15006174,30460.0,30459.0,0.07796145]
[1688202079602,0.81535874,30460.0,30459.0,0.07796145]
[1688202079804,0.45455874,30460.0,30459.0,0.07796145]
[1688202079993,0.38662578,30460.0,30459.0,0.07796145]
[1688202080194,0.38662578,30460.0,30459.0,0.09619114]
[1688202087412,0.45455336,30460.0,30459.0,0.09619114]
[1688202089402,0.42809139,30460.0,30459.0,0.09619114]
[1688202089606,0.07349139,30460.0,30459.0,0.44899114]
[1688202092111,0.00556381,30460.0,30459.0,0.80979114]
[1688202098813,0.43115333,30462.0,30459.0,0.80979114]
[1688202099015,0.38145231,30462.0,30461.0,0.3546]
[1688202099214,0.38145231,30462.0,30461.0,0.41138214]
[1688202099607,0.87133938,30462.0,30461.0,0.41138214]
[1688202100315,0.87133938,30462.0,30461.0,0.39315245]
[1688202101114,1.17443938,30462.0,30461.0,0.41138214]
[1688202101517,1.17443938,30462.0,30461.0,0.39315245]
[1688202103812,1.17443938,30462.0,30461.0,0.41138214]
[1688202104308,1.17443938,30462.0,30461.0,0.39315245]
[1688202106518,1.18000934,30462.0,30461.0,0.39315245]
[1688202109920,1.54329409,30462.0,30461.0,0.41138214]
[1688202110419,1.54329409,30462.0,30461.0,0.39315245]
[1688202110628,1.54329409,30462.0,30461.0,0.41138214]
[1688202111423,1.54329409,30462.0,30461.0,0.39015245]
[1688202111724,1.54329409,30462.0,30461.0,0.40838214]
[1688202113326,1.54329409,30462.0,30461.0,0.39015245]
[1688202114328,1.54329409,30462.0,30461.0,0.40838214]
[1688202114630,1.54329409,30462.0,30461.0,0.39015245]
[1688202117531,1.47536842,30462.0,30461.0,0.39015245]
[1688202117722,1.18000934,30462.0,30461.0,0.39015245]
[1688202118233,1.18000934,30462.0,30461.0,0.40838214]
[1688202119124,1.18000934,30462.0,30461.0,0.39015245]
[1688202119827,1.18000934,30462.0,30461.0,0.40838214]
[1688202120124,1.18000934,30462.0,30461.0,0.39015245]
[1688202123215,1.15315703,30462.0,30461.0,0.40838214]
[1688202124822,0.79855703,30462.0,30461.0,0.41138214]
[1688202125023,0.86647836,30462.0,30461.0,0.41138214]
[1688202127229,0.50428836,30462.0,30461.0,0.41138214]
[1688202127418,0.50628543,30462.0,30461.0,0.41138214]
[1688202127623,0.4383641,30462.0,30461.0,0.41138214]
[1688202152946,0.4383641,30462.0,30461.0,0.77218214]
[1688202156149,0.7598641,30462.0,30461.0,0.77218214]
[1688202160965,0.00756703,30462.0,30461.0,0.77218214]
[1688202161456,0.00049246,30463.0,30461.0,0.77218214]
[1688202161663,0.00049246,30463.0,30462.0,0.39167914]
[1688202161857,0.00049246,30463.0,30462.0,0.41138114]
[1688202162454,0.00049246,30463.0,30462.0,0.76378114]
[1688202163647,0.00814674,30463.0,30462.0,0.76378114]
[1688202164847,0.00814674,30463.0,30462.0,0.40918114]
[1688202171055,0.00049246,30463.0,30462.0,0.40918114]
[1688202175259,0.3037,30467.0,30465.0,0.0197]
[1688202175464,0.3037,30467.0,30466.0,0.733299]
[1688202175861,0.3037,30467.0,30466.0,0.77037814]
[1688202176258,0.79435844,30467.0,30466.0,0.77037814]
[1688202178358,0.79435844,30467.0,30466.0,1.13117814]
[1688202181665,0.80392869,30467.0,30466.0,1.13117814]
[1688202183068,0.80392869,30467.0,30466.0,1.11232869]
[1688202183768,0.80392869,30467.0,30466.0,1.13117814]
[1688202185773,0.80392869,30467.0,30466.0,0.77037814]
[1688202189675,0.80392869,30467.0,30466.0,0.40957814]
[1688202189879,0.80392869,30467.0,30466.0,0.77037814]
[1688202193578,0.80392869,30467.0,30466.0,0.733299]
[1688202196183,0.80392869,30467.0,30466.0,0.75152869]
[1688202196678,0.80392869,30467.0,30466.0,0.77037814]
[1688202199180,0.80392869,30467.0,30466.0,0.75214845]
[1688202200692,0.80392869,30467.0,30466.0,0.77037814]
[1688202201779,0.80392869,30467.0,30466.0,0.75214845]
[1688202202284,0.80392869,30467.0,30466.0,0.77037814]
[1688202203481,0.80392869,30467.0,30466.0,0.75214845]
[1688202203683,0.80392869,30467.0,30466.0,0.77037814]
[1688202203986,0.80392869,30467.0,30466.0,0.75214845]
[1688202204187,0.80392869,30467.0,30466.0,0.77037814]
[1688202205490,0.80392869,30467.0,30466.0,0.40957814]